[Event "European Online Club-ch-C 2021"]
[Site "Online"]
[Date "2021.03.27"]
[Round "1.4"]
[White "Deveci, Huseyin Said"]
[Black "Shimanov, Aleksandr"]
[Result "0-1"]
[ECO "B19"]
[WhiteElo "1521"]
[BlackElo "2597"]
[Annotator "ChessBase"]
[PlyCount "122"]
[EventDate "2021.03.27"]
[EventType "team-tourn"]
[EventCountry "NET"]
[SourceTitle "playchess.com"]
[Source "ChessBase"]
[SourceQuality "1"]
[TimeControl "900+5"]

1. e4 {[%emt 0:00:00]} c6 {[%emt 0:00:10]} 2. d4 {[%emt 0:00:05]} d5 {[%emt 0:00:04]} 3. Nd2 {[%emt 0:00:18]} dxe4 {[%emt 0:00:05]} 4. Nxe4 {[%emt 0:00:25]} Bf5 {[%emt 0:00:02]} 5. Ng3 {[%emt 0:00:04]} Bg6 {[%emt 0:00:02]} 6. h4 {[%emt 0:00:03]} h6 {[%emt 0:00:04]} 7. Nf3 {[%emt 0:00:05]} Nd7 {[%emt 0:00:20]} 8. h5 {[%emt 0:00:06]} Bh7 {[%emt 0:00:02]} 9. Bd3 {[%emt 0:00:02]} Bxd3 {[%emt 0:00:02]} 10. Qxd3 {[%emt 0:00:02]} e6 {[%emt 0:00:01]} 11. Bd2 {[%emt 0:00:03]} a5 {[%emt 0:00:18]} 12. O-O-O {[%emt 0:00:26]} Bb4 {[%emt 0:00:04]} 13. c3 {[%emt 0:00:25]} Be7 {[%emt 0:00:03]} 14. Kb1 {[%emt 0:00:18]} Ngf6 {[%emt 0:00:05]} 15. Ne4 {[%emt 0:00:12]} Nxe4 {[%emt 0:00:48]} 16. Qxe4 {[%emt 0:00:04]} Nf6 {[%emt 0:00:01]} 17. Qe2 {[%emt 0:00:02]} Qd5 {[%emt 0:00:03]} 18. c4 {[%emt 0:00:02]} Qe4+ {[%emt 0:00:05]} 19. Qxe4 {[%emt 0:00:02]} Nxe4 {[%emt 0:00:00]} 20. Be3 {[%emt 0:00:01]} Nd6 {[%emt 0:01:02]} 21. Ne5 {[%emt 0:01:18]} Bf6 {[%emt 0:00:25]} 22. c5 {[%emt 0:01:08]} Nf5 {[%emt 0:00:07]} 23. g4 {[%emt 0:00:27]} Ne7 {[%emt 0:00:44]} 24. Nc4 {[%emt 0:00:32]} Nd5 {[%emt 0:00:05]} 25. Rd3 {[%emt 0:01:08]} O-O {[%emt 0:01:23]} 26. Ra3 {[%emt 0:00:27]} a4 {[%emt 0:00:27]} 27. Nd6 {[%emt 0:00:21]} Rfb8 {[%emt 0:00:11]} 28. Rc1 {[%emt 0:00:28]} Be7 {[%emt 0:01:03]} 29. Rc4 {[%emt 0:02:42]} b5 {[%emt 0:00:50]} 30. Rc1 {[%emt 0:00:34]} Bxd6 {[%emt 0:00:15]} 31. cxd6 {[%emt 0:00:03]} Ra6 {[%emt 0:00:04]} 32. b3 {[%emt 0:03:14]} Kf8 {[%emt 0:00:09]} 33. Bd2 {[%emt 0:00:47]} Ke8 {[%emt 0:00:19]} 34. bxa4 {[%emt 0:00:19]} bxa4+ {[%emt 0:00:04]} 35. Ka1 {[%emt 0:00:05]} Kd7 {[%emt 0:00:07]} 36. Rc4 {[%emt 0:01:10]} Rab6 {[%emt 0:01:11]} 37. Rc1 {[%emt 0:00:03]} Ra6 {[%emt 0:00:17]} 38. Rc4 {[%emt 0:00:03]} Rba8 {[%emt 0:00:01]} 39. Bb4 {[%emt 0:00:20]} Nxb4 {[%emt 0:01:08]} 40. Rxb4 {[%emt 0:00:02]} Kxd6 {[%emt 0:00:01]} 41. Rc3 {[%emt 0:00:07]} a3 {[%emt 0:00:11]} 42. Rcc4 {[%emt 0:00:16]} Kc7 {[%emt 0:00:48]} 43. Kb1 {[%emt 0:00:06]} Ra5 {[%emt 0:00:19]} 44. Kc2 {[%emt 0:00:04]} f5 {[%emt 0:00:03]} 45. f3 {[%emt 0:00:07]} fxg4 {[%emt 0:00:03]} 46. fxg4 {[%emt 0:00:01]} Rg5 {[%emt 0:00:02]} 47. Rc3 {[%emt 0:00:10]} Rxg4 {[%emt 0:00:05]} 48. Rcb3 {[%emt 0:00:01]} Rg2+ {[%emt 0:00:06]} 49. Kd3 {[%emt 0:00:05]} Ra7 {[%emt 0:00:09]} 50. Rb8 {[%emt 0:00:08]} Rxa2 {[%emt 0:00:09]} 51. Rg8 {[%emt 0:00:01]} Rg2 {[%emt 0:00:03]} 52. Rbb8 {[%emt 0:00:04]} a2 {[%emt 0:00:10]} 53. Rgc8+ {[%emt 0:00:05]} Kd6 {[%emt 0:00:01]} 54. Rd8+ {[%emt 0:00:02]} Ke7 {[%emt 0:00:14]} 55. Re8+ {[%emt 0:00:01]} Kf6 {[%emt 0:00:03]} 56. Rf8+ {[%emt 0:00:12]} Kg5 {[%emt 0:00:03]} 57. Rbe8 {[%emt 0:00:13]} a1=Q {[%emt 0:00:05]} 58. Ke4 {[%emt 0:00:02]} Re2+ {[%emt 0:00:05]} 59. Kf3 {[%emt 0:00:01]} Qf1+ {[%emt 0:00:02]} 60. Kg3 {[%emt 0:00:01]} Rg2+ {[%emt 0:00:02]} 61. Kh3 {[%emt 0:00:02]} Qh1# {[%emt 0:00:00]} 0-1

[Event "European Online Club-ch-C 2021"]
[Site "Online"]
[Date "2021.03.27"]
[Round "1.6"]
[White "Bruch, Jochen"]
[Black "Heimann, Andreas"]
[Result "0-1"]
[ECO "A07"]
[WhiteElo "2187"]
[BlackElo "2606"]
[Annotator "ChessBase"]
[PlyCount "84"]
[EventDate "2021.03.27"]
[EventType "team-tourn"]
[EventCountry "NET"]
[SourceTitle "playchess.com"]
[Source "ChessBase"]
[SourceQuality "1"]
[TimeControl "900+5"]

1. Nf3 {[%emt 0:00:00]} d5 {[%emt 0:00:04]} 2. g3 {[%emt 0:00:03]} g6 {[%emt 0:00:04]} 3. Bg2 {[%emt 0:00:04]} Bg7 {[%emt 0:00:02]} 4. O-O {[%emt 0:00:02]} Nf6 {[%emt 0:00:02]} 5. d3 {[%emt 0:00:04]} O-O {[%emt 0:00:02]} 6. Nbd2 {[%emt 0:00:03]} Nc6 {[%emt 0:00:02]} 7. e4 {[%emt 0:00:06]} dxe4 {[%emt 0:00:01]} 8. dxe4 {[%emt 0:00:03]} a5 {[%emt 0:00:02]} 9. c3 {[%emt 0:00:03]} Nd7 {[%emt 0:00:21]} 10. Qc2 {[%emt 0:00:50]} Nc5 {[%emt 0:02:34]} 11. Ne1 {[%emt 0:01:56]} b6 {[%emt 0:00:04]} 12. f4 {[%emt 0:01:13]} Ba6 {[%emt 0:00:10]} 13. Rf3 {[%emt 0:00:19]} e6 {[%emt 0:00:01]} 14. Nb3 {[%emt 0:00:14]} Nxb3 {[%emt 0:00:18]} 15. Qxb3 {[%emt 0:00:36]} e5 {[%emt 0:00:48]} 16. Be3 {[%emt 0:00:32]} Qe7 {[%emt 0:00:41]} 17. Rf2 {[%emt 0:00:10]} Rad8 {[%emt 0:00:22]} 18. Rd1 {[%emt 0:00:07]} Bc4 {[%emt 0:00:50]} 19. Qc2 {[%emt 0:00:05]} Rxd1 {[%emt 0:00:05]} 20. Qxd1 {[%emt 0:00:05]} Rd8 {[%emt 0:00:02]} 21. Qc2 {[%emt 0:00:14]} f6 {[%emt 0:00:41]} 22. b3 {[%emt 0:00:09]} Bf7 {[%emt 0:00:03]} 23. Rd2 {[%emt 0:00:05]} Bf8 {[%emt 0:00:10]} 24. Rxd8 {[%emt 0:00:29]} Qxd8 {[%emt 0:00:00]} 25. Nd3 {[%emt 0:00:07]} Bd6 {[%emt 0:00:07]} 26. Nf2 {[%emt 0:00:46]} Qe7 {[%emt 0:00:27]} 27. Bf1 {[%emt 0:00:46]} Bc5 {[%emt 0:04:39]} 28. Qd2 {[%emt 0:02:43]} Bxe3 {[%emt 0:00:03]} 29. Qxe3 {[%emt 0:00:04]} Be6 {[%emt 0:00:00]} 30. Qc1 {[%emt 0:01:47]} Kg7 {[%emt 0:00:13]} 31. Kg2 {[%emt 0:00:02]} Qc5 {[%emt 0:00:07]} 32. Nd3 {[%emt 0:00:14]} Qd6 {[%emt 0:00:03]} 33. Qb2 {[%emt 0:00:43]} Bc8 {[%emt 0:00:32]} 34. Qc1 {[%emt 0:00:50]} Bb7 {[%emt 0:00:30]} 35. Nf2 {[%emt 0:00:03]} Nd8 {[%emt 0:00:07]} 36. Bc4 {[%emt 0:00:28]} f5 {[%emt 0:00:57]} 37. Bd3 {[%emt 0:01:03]} Ne6 {[%emt 0:00:41]} 38. Kg1 {[%emt 0:00:17]} exf4 {[%emt 0:00:17]} 39. exf5 {[%emt 0:00:13]} fxg3 {[%emt 0:00:01]} 40. fxe6 {[%emt 0:00:10]} gxf2+ {[%emt 0:00:06]} 41. Kxf2 {[%emt 0:00:04]} Qxd3 {[%emt 0:00:10]} 42. Qf4 {[%emt 0:00:15]} Qf5 {[%emt 0:00:03]} 0-1

[Event "European Online Club-ch-C 2021"]
[Site "Online"]
[Date "2021.03.27"]
[Round "1.7"]
[White "Keymer, Vincent"]
[Black "Kirsch, Laurent"]
[Result "1-0"]
[ECO "A11"]
[WhiteElo "2591"]
[BlackElo "2120"]
[Annotator "ChessBase"]
[PlyCount "77"]
[EventDate "2021.03.27"]
[EventType "team-tourn"]
[EventCountry "NET"]
[SourceTitle "playchess.com"]
[Source "ChessBase"]
[SourceQuality "1"]
[TimeControl "900+5"]

1. Nf3 {[%emt 0:00:00]} d5 {[%emt 0:00:07]} 2. e3 {[%emt 0:00:02]} Nf6 {[%emt 0:00:07]} 3. c4 {[%emt 0:00:06]} c6 {[%emt 0:00:03]} 4. Nc3 {[%emt 0:00:02]} e6 {[%emt 0:00:04]} 5. b3 {[%emt 0:00:02]} Bd6 {[%emt 0:00:10]} 6. Bb2 {[%emt 0:00:02]} O-O {[%emt 0:00:03]} 7. h3 {[%emt 0:00:11]} b6 {[%emt 0:00:21]} 8. d4 {[%emt 0:00:02]} Nbd7 {[%emt 0:00:07]} 9. Bd3 {[%emt 0:00:02]} Bb7 {[%emt 0:00:27]} 10. O-O {[%emt 0:00:03]} e5 {[%emt 0:00:54]} 11. cxd5 {[%emt 0:00:12]} cxd5 {[%emt 0:00:05]} 12. Nb5 {[%emt 0:00:06]} Bb8 {[%emt 0:01:04]} 13. dxe5 {[%emt 0:00:35]} Ne4 {[%emt 0:00:10]} 14. Rc1 {[%emt 0:02:55]} a6 {[%emt 0:01:33]} 15. Nd6 {[%emt 0:01:52]} Nxd6 {[%emt 0:00:57]} 16. exd6 {[%emt 0:00:00]} Bxd6 {[%emt 0:00:04]} 17. Bb1 {[%emt 0:00:42]} Nf6 {[%emt 0:00:54]} 18. Qd4 {[%emt 0:00:24]} Bc5 {[%emt 0:00:21]} 19. Qf4 {[%emt 0:00:59]} Ne4 {[%emt 0:01:15]} 20. Qg4 {[%emt 0:00:54]} f6 {[%emt 0:00:22]} 21. Nd4 {[%emt 0:01:12]} Bc8 {[%emt 0:02:46]} 22. Nf5 {[%emt 0:01:36]} g6 {[%emt 0:00:53]} 23. Bxe4 {[%emt 0:00:03]} dxe4 {[%emt 0:00:12]} 24. Nh6+ {[%emt 0:00:02]} Kg7 {[%emt 0:00:14]} 25. Qxe4 {[%emt 0:00:02]} Ra7 {[%emt 0:00:21]} 26. Ng4 {[%emt 0:00:51]} Bf5 {[%emt 0:00:41]} 27. Qf3 {[%emt 0:00:15]} Bxg4 {[%emt 0:00:19]} 28. hxg4 {[%emt 0:00:00]} h6 {[%emt 0:00:21]} 29. Rfd1 {[%emt 0:00:02]} Qe7 {[%emt 0:00:07]} 30. Rd5 {[%emt 0:00:07]} Ba3 {[%emt 0:00:22]} 31. Bxa3 {[%emt 0:00:34]} Qxa3 {[%emt 0:00:02]} 32. Rc6 {[%emt 0:00:00]} b5 {[%emt 0:00:18]} 33. Qe2 {[%emt 0:00:08]} Qb4 {[%emt 0:00:28]} 34. Rd4 {[%emt 0:00:07]} Qe7 {[%emt 0:00:15]} 35. Qd3 {[%emt 0:00:06]} Rb8 {[%emt 0:00:32]} 36. Rdd6 {[%emt 0:00:09]} a5 {[%emt 0:00:05]} 37. Rxf6 {[%emt 0:00:04]} Qxf6 {[%emt 0:00:01]} 38. Rxf6 {[%emt 0:00:00]} Kxf6 {[%emt 0:00:01]} 39. Qd4+ {[%emt 0:00:01]} 1-0

[Event "European Online Club-ch-C 2021"]
[Site "Online"]
[Date "2021.03.27"]
[Round "1.8"]
[White "Schlueter, Yves"]
[Black "Kollars, Dmitrij"]
[Result "0-1"]
[ECO "A21"]
[WhiteElo "2058"]
[BlackElo "2598"]
[Annotator "ChessBase"]
[PlyCount "72"]
[EventDate "2021.03.27"]
[EventType "team-tourn"]
[EventCountry "NET"]
[SourceTitle "playchess.com"]
[Source "ChessBase"]
[SourceQuality "1"]
[TimeControl "900+5"]

1. c4 {[%emt 0:00:00]} e5 {[%emt 0:00:13]} 2. Nc3 {[%emt 0:00:04]} Bb4 {[%emt 0:00:19]} 3. d3 {[%emt 0:00:02]} Bxc3+ {[%emt 0:00:11]} 4. bxc3 {[%emt 0:00:02]} Ne7 {[%emt 0:00:03]} 5. g3 {[%emt 0:00:03]} O-O {[%emt 0:00:03]} 6. Bg2 {[%emt 0:00:02]} d6 {[%emt 0:00:05]} 7. Nf3 {[%emt 0:00:33]} c5 {[%emt 0:00:29]} 8. O-O {[%emt 0:00:13]} Nbc6 {[%emt 0:00:02]} 9. Rb1 {[%emt 0:00:12]} b6 {[%emt 0:00:54]} 10. d4 {[%emt 0:00:38]} Bf5 {[%emt 0:00:14]} 11. Rb2 {[%emt 0:00:53]} Qc8 {[%emt 0:00:34]} 12. d5 {[%emt 0:02:19]} Na5 {[%emt 0:00:09]} 13. Nd2 {[%emt 0:00:04]} Bh3 {[%emt 0:00:54]} 14. e4 {[%emt 0:00:18]} Bxg2 {[%emt 0:00:27]} 15. Kxg2 {[%emt 0:00:02]} f5 {[%emt 0:00:01]} 16. Qe2 {[%emt 0:00:24]} Qd7 {[%emt 0:00:52]} 17. Nb3 {[%emt 0:00:42]} Nb7 {[%emt 0:00:08]} 18. f4 {[%emt 0:00:27]} exf4 {[%emt 0:00:23]} 19. Bxf4 {[%emt 0:00:59]} Ng6 {[%emt 0:01:05]} 20. exf5 {[%emt 0:01:16]} Qxf5 {[%emt 0:00:29]} 21. Be3 {[%emt 0:02:01]} Qe4+ {[%emt 0:00:13]} 22. Kg1 {[%emt 0:00:54]} Rxf1+ {[%emt 0:00:03]} 23. Kxf1 {[%emt 0:00:07]} Qh1+ {[%emt 0:00:03]} 24. Kf2 {[%emt 0:00:13]} Rf8+ {[%emt 0:00:02]} 25. Bf4 {[%emt 0:00:06]} Nxf4 {[%emt 0:01:46]} 26. gxf4 {[%emt 0:00:08]} Qxh2+ {[%emt 0:00:29]} 27. Ke1 {[%emt 0:00:02]} Qxf4 {[%emt 0:00:07]} 28. Qe6+ {[%emt 0:00:13]} Kh8 {[%emt 0:00:24]} 29. Re2 {[%emt 0:00:02]} Nd8 {[%emt 0:00:42]} 30. Qe8 {[%emt 0:00:21]} Kg8 {[%emt 0:00:25]} 31. Qe7 {[%emt 0:00:04]} Nf7 {[%emt 0:00:25]} 32. Rf2 {[%emt 0:00:53]} Qe5+ {[%emt 0:01:07]} 33. Re2 {[%emt 0:00:14]} Qxc3+ {[%emt 0:00:10]} 34. Nd2 {[%emt 0:00:08]} Ne5 {[%emt 0:00:27]} 35. Qe6+ {[%emt 0:01:06]} Kh8 {[%emt 0:00:03]} 36. Qxd6 {[%emt 0:00:02]} Qc1# {[%emt 0:00:02]} 0-1

[Event "European Online Club-ch-C 2021"]
[Site "Online"]
[Date "2021.03.27"]
[Round "1.9"]
[White "Nguyen, Thai Dai Van"]
[Black "Braun, Christian"]
[Result "1-0"]
[ECO "C06"]
[WhiteElo "2577"]
[BlackElo "2409"]
[Annotator "ChessBase"]
[PlyCount "49"]
[EventDate "2021.03.27"]
[EventType "team-tourn"]
[EventCountry "NET"]
[SourceTitle "playchess.com"]
[Source "ChessBase"]
[SourceQuality "1"]
[TimeControl "900+5"]

1. e4 {[%emt 0:00:00]} e6 {[%emt 0:00:03]} 2. d4 {[%emt 0:00:04]} d5 {[%emt 0:00:14]} 3. Nd2 {[%emt 0:00:06]} Be7 {[%emt 0:00:04]} 4. Ngf3 {[%emt 0:00:38]} Nf6 {[%emt 0:00:05]} 5. e5 {[%emt 0:00:26]} Nfd7 {[%emt 0:00:02]} 6. Bd3 {[%emt 0:00:02]} c5 {[%emt 0:00:02]} 7. c3 {[%emt 0:00:02]} Nc6 {[%emt 0:00:02]} 8. O-O {[%emt 0:00:03]} g5 {[%emt 0:00:03]} 9. dxc5 {[%emt 0:00:38]} g4 {[%emt 0:00:04]} 10. Nd4 {[%emt 0:00:08]} Ndxe5 {[%emt 0:00:02]} 11. Bb5 {[%emt 0:00:02]} Bd7 {[%emt 0:00:02]} 12. Bxc6 {[%emt 0:00:12]} bxc6 {[%emt 0:00:46]} 13. f4 {[%emt 0:00:12]} Nd3 {[%emt 0:00:38]} 14. b4 {[%emt 0:00:05]} Nxc1 {[%emt 0:00:57]} 15. Rxc1 {[%emt 0:00:04]} f5 {[%emt 0:00:34]} 16. Qe2 {[%emt 0:02:47]} Kf7 {[%emt 0:00:05]} 17. Rce1 {[%emt 0:00:33]} Re8 {[%emt 0:02:12]} 18. N2b3 {[%emt 0:00:08]} Bf6 {[%emt 0:00:07]} 19. a3 {[%emt 0:01:22]} a5 {[%emt 0:01:46]} 20. Nxa5 {[%emt 0:00:44]} Rxa5 {[%emt 0:00:04]} 21. bxa5 {[%emt 0:00:00]} Qxa5 {[%emt 0:00:01]} 22. Qe3 {[%emt 0:00:09]} Qxa3 {[%emt 0:01:31]} 23. Rb1 {[%emt 0:00:05]} h5 {[%emt 0:00:24]} 24. Rb7 {[%emt 0:00:11]} Re7 {[%emt 0:00:03]} 25. Rxd7 {[%emt 0:00:06]} 1-0

[Event "European Online Club-ch-C 2021"]
[Site "Online"]
[Date "2021.03.27"]
[Round "1.10"]
[White "Zimmermann, Luc"]
[Black "Michalik, Peter"]
[Result "0-1"]
[ECO "B22"]
[WhiteElo "2151"]
[BlackElo "2594"]
[Annotator "ChessBase"]
[PlyCount "90"]
[EventDate "2021.03.27"]
[EventType "team-tourn"]
[EventCountry "NET"]
[SourceTitle "playchess.com"]
[Source "ChessBase"]
[SourceQuality "1"]
[TimeControl "900+5"]

1. e4 {[%emt 0:00:00]} c5 {[%emt 0:00:14]} 2. c3 {[%emt 0:00:04]} Nf6 {[%emt 0:00:05]} 3. e5 {[%emt 0:00:02]} Nd5 {[%emt 0:00:02]} 4. d4 {[%emt 0:00:02]} cxd4 {[%emt 0:00:02]} 5. Nf3 {[%emt 0:00:01]} Nc6 {[%emt 0:00:05]} 6. Bc4 {[%emt 0:00:03]} Nb6 {[%emt 0:00:03]} 7. Bb3 {[%emt 0:00:09]} d5 {[%emt 0:00:03]} 8. exd6 {[%emt 0:00:02]} Qxd6 {[%emt 0:00:03]} 9. O-O {[%emt 0:00:01]} Be6 {[%emt 0:00:09]} 10. Nxd4 {[%emt 0:00:04]} Nxd4 {[%emt 0:00:26]} 11. cxd4 {[%emt 0:00:02]} Bxb3 {[%emt 0:00:05]} 12. axb3 {[%emt 0:00:15]} e6 {[%emt 0:00:15]} 13. Nc3 {[%emt 0:00:17]} Be7 {[%emt 0:00:04]} 14. Qf3 {[%emt 0:00:03]} Qd7 {[%emt 0:00:15]} 15. d5 {[%emt 0:00:20]} Nxd5 {[%emt 0:00:08]} 16. Rd1 {[%emt 0:00:23]} O-O {[%emt 0:00:13]} 17. Nxd5 {[%emt 0:00:02]} exd5 {[%emt 0:00:02]} 18. Rxd5 {[%emt 0:00:02]} Qc6 {[%emt 0:00:12]} 19. Be3 {[%emt 0:00:48]} Bf6 {[%emt 0:00:05]} 20. Rc1 {[%emt 0:02:14]} Qe6 {[%emt 0:00:45]} 21. g3 {[%emt 0:02:06]} Rfc8 {[%emt 0:01:09]} 22. Rxc8+ {[%emt 0:03:43]} Rxc8 {[%emt 0:00:27]} 23. Rc5 {[%emt 0:00:41]} b6 {[%emt 0:00:57]} 24. Rxc8+ {[%emt 0:02:00]} Qxc8 {[%emt 0:00:04]} 25. Qe2 {[%emt 0:00:24]} h6 {[%emt 0:00:29]} 26. b4 {[%emt 0:01:45]} Qd7 {[%emt 0:01:24]} 27. b3 {[%emt 0:00:27]} b5 {[%emt 0:01:14]} 28. Qa2 {[%emt 0:00:38]} Qd1+ {[%emt 0:01:05]} 29. Kg2 {[%emt 0:00:02]} Bd4 {[%emt 0:00:07]} 30. Bxd4 {[%emt 0:00:22]} Qxd4 {[%emt 0:00:00]} 31. Qa5 {[%emt 0:00:10]} Qd7 {[%emt 0:00:09]} 32. h4 {[%emt 0:00:11]} h5 {[%emt 0:00:05]} 33. Kg1 {[%emt 0:00:03]} g6 {[%emt 0:00:02]} 34. Qa2 {[%emt 0:00:09]} Qd1+ {[%emt 0:00:37]} 35. Kh2 {[%emt 0:00:03]} Qd4 {[%emt 0:00:04]} 36. Kg1 {[%emt 0:00:09]} Qxb4 {[%emt 0:00:05]} 37. Qxa7 {[%emt 0:00:05]} Qxb3 {[%emt 0:00:03]} 38. Qb8+ {[%emt 0:00:02]} Kh7 {[%emt 0:00:04]} 39. Qe5 {[%emt 0:00:02]} Qc4 {[%emt 0:00:06]} 40. Kh2 {[%emt 0:00:04]} b4 {[%emt 0:00:02]} 41. Qe7 {[%emt 0:00:12]} b3 {[%emt 0:00:07]} 42. Qb7 {[%emt 0:00:01]} Kg7 {[%emt 0:00:05]} 43. Kg2 {[%emt 0:00:05]} Qc3 {[%emt 0:00:02]} 44. Kh2 {[%emt 0:00:11]} b2 {[%emt 0:00:05]} 45. Qb6 {[%emt 0:00:02]} Qf6 {[%emt 0:00:12]} 0-1

[Event "European Online Club-ch-C 2021"]
[Site "Online"]
[Date "2021.03.27"]
[Round "1.11"]
[White "Plat, Vojtech"]
[Black "De Mon, Gino"]
[Result "1-0"]
[ECO "B22"]
[WhiteElo "2552"]
[BlackElo "2060"]
[Annotator "ChessBase"]
[PlyCount "45"]
[EventDate "2021.03.27"]
[EventType "team-tourn"]
[EventCountry "NET"]
[SourceTitle "playchess.com"]
[Source "ChessBase"]
[SourceQuality "1"]
[TimeControl "900+5"]

1. e4 {[%emt 0:00:00]} c5 {[%emt 0:00:08]} 2. Nf3 {[%emt 0:00:18]} Nc6 {[%emt 0:02:48]} 3. c3 {[%emt 0:00:13]} Nf6 {[%emt 0:00:25]} 4. e5 {[%emt 0:00:05]} Nd5 {[%emt 0:00:01]} 5. Bc4 {[%emt 0:00:02]} Nb6 {[%emt 0:00:02]} 6. Bb3 {[%emt 0:00:02]} d5 {[%emt 0:00:03]} 7. exd6 {[%emt 0:00:03]} Qxd6 {[%emt 0:00:02]} 8. d4 {[%emt 0:00:02]} cxd4 {[%emt 0:00:05]} 9. cxd4 {[%emt 0:00:02]} Be6 {[%emt 0:00:33]} 10. O-O {[%emt 0:00:17]} Bxb3 {[%emt 0:01:20]} 11. Qxb3 {[%emt 0:00:35]} e6 {[%emt 0:00:12]} 12. Nc3 {[%emt 0:00:03]} Be7 {[%emt 0:00:04]} 13. Be3 {[%emt 0:00:17]} O-O {[%emt 0:00:11]} 14. Rfd1 {[%emt 0:00:03]} Rfd8 {[%emt 0:00:18]} 15. Rac1 {[%emt 0:00:34]} Rac8 {[%emt 0:00:10]} 16. d5 {[%emt 0:00:38]} Na5 {[%emt 0:01:17]} 17. Qb5 {[%emt 0:00:05]} Nac4 {[%emt 0:00:16]} 18. dxe6 {[%emt 0:02:46]} Qxe6 {[%emt 0:00:00]} 19. Bxb6 {[%emt 0:00:20]} axb6 {[%emt 0:00:48]} 20. Rxd8+ {[%emt 0:01:39]} Rxd8 {[%emt 0:00:04]} 21. Re1 {[%emt 0:00:02]} Nd6 {[%emt 0:02:37]} 22. Rxe6 {[%emt 0:00:13]} Nxb5 {[%emt 0:00:02]} 23. Rxe7 {[%emt 0:00:02]} 1-0

[Event "European Online Club-ch-C 2021"]
[Site "Online"]
[Date "2021.03.27"]
[Round "1.12"]
[White "De Vries, Leon"]
[Black "Krejci, Jan"]
[Result "0-1"]
[ECO "A05"]
[WhiteElo "2021"]
[BlackElo "2540"]
[Annotator "ChessBase"]
[PlyCount "88"]
[EventDate "2021.03.27"]
[EventType "team-tourn"]
[EventCountry "NET"]
[SourceTitle "playchess.com"]
[Source "ChessBase"]
[SourceQuality "1"]
[TimeControl "900+5"]

1. Nf3 {[%emt 0:00:00]} Nf6 {[%emt 0:00:05]} 2. c4 {[%emt 0:00:04]} e6 {[%emt 0:00:02]} 3. g3 {[%emt 0:00:05]} a6 {[%emt 0:00:13]} 4. Bg2 {[%emt 0:00:08]} b5 {[%emt 0:00:05]} 5. b3 {[%emt 0:00:22]} Bb7 {[%emt 0:00:02]} 6. O-O {[%emt 0:00:05]} Be7 {[%emt 0:00:03]} 7. Bb2 {[%emt 0:00:07]} O-O {[%emt 0:00:02]} 8. d3 {[%emt 0:00:11]} d6 {[%emt 0:00:08]} 9. Qc2 {[%emt 0:00:12]} Nbd7 {[%emt 0:00:02]} 10. Nbd2 {[%emt 0:00:16]} c5 {[%emt 0:00:03]} 11. Rfd1 {[%emt 0:00:29]} Rc8 {[%emt 0:01:04]} 12. Rac1 {[%emt 0:00:17]} Qb6 {[%emt 0:00:05]} 13. e3 {[%emt 0:00:33]} Qa7 {[%emt 0:00:31]} 14. Qb1 {[%emt 0:00:34]} h6 {[%emt 0:00:13]} 15. d4 {[%emt 0:00:45]} cxd4 {[%emt 0:00:08]} 16. Bxd4 {[%emt 0:00:57]} Qa8 {[%emt 0:00:04]} 17. Nh4 {[%emt 0:00:27]} bxc4 {[%emt 0:01:02]} 18. Nxc4 {[%emt 0:00:42]} Ne4 {[%emt 0:00:36]} 19. Ba1 {[%emt 0:01:46]} Rfd8 {[%emt 0:02:03]} 20. Na5 {[%emt 0:00:45]} Rxc1 {[%emt 0:00:13]} 21. Rxc1 {[%emt 0:00:07]} Bd5 {[%emt 0:00:05]} 22. Qc2 {[%emt 0:01:02]} Bxh4 {[%emt 0:00:23]} 23. gxh4 {[%emt 0:00:09]} Nec5 {[%emt 0:00:08]} 24. Bxd5 {[%emt 0:01:10]} Qxd5 {[%emt 0:00:00]} 25. Rd1 {[%emt 0:00:10]} Qa8 {[%emt 0:01:43]} 26. Rxd6 {[%emt 0:00:20]} Ne4 {[%emt 0:00:52]} 27. Rd4 {[%emt 0:01:54]} Ndf6 {[%emt 0:01:01]} 28. Nc6 {[%emt 0:00:43]} Rxd4 {[%emt 0:00:09]} 29. Bxd4 {[%emt 0:00:18]} Qb7 {[%emt 0:01:27]} 30. f3 {[%emt 0:00:32]} Nd6 {[%emt 0:00:03]} 31. Bxf6 {[%emt 0:00:06]} gxf6 {[%emt 0:00:03]} 32. Kf2 {[%emt 0:00:32]} Qb5 {[%emt 0:00:31]} 33. Ne7+ {[%emt 0:00:40]} Kf8 {[%emt 0:00:52]} 34. Qc7 {[%emt 0:00:14]} Ne8 {[%emt 0:00:05]} 35. Qa7 {[%emt 0:00:14]} Qe5 {[%emt 0:00:52]} 36. f4 {[%emt 0:00:25]} Qd6 {[%emt 0:00:14]} 37. Nc8 {[%emt 0:00:11]} Qa3 {[%emt 0:00:12]} 38. Kf3 {[%emt 0:00:17]} f5 {[%emt 0:00:01]} 39. h5 {[%emt 0:00:05]} Nf6 {[%emt 0:00:22]} 40. Nb6 {[%emt 0:00:12]} Qd6 {[%emt 0:00:16]} 41. Nc4 {[%emt 0:00:14]} Qd1+ {[%emt 0:00:09]} 42. Kf2 {[%emt 0:00:02]} Ne4+ {[%emt 0:00:11]} 43. Kg2 {[%emt 0:00:04]} Qe2+ {[%emt 0:00:04]} 44. Kh3 {[%emt 0:00:05]} Qg4# {[%emt 0:00:05]} 0-1